{"text_format":"3","workbook":"xlsx","n_sheets":4,"sheets":["Lista zakupów","Podział budżetu","Lista zadań do wykonania","Lista udostępniania"],"not_rendered":{"charts":2,"images":2,"defined_names":12},"read":"whole","date_system":"1900"}

{"sheet":"Lista zakupów","index":0,"n_rows":25,"n_cols":8,"rows_kept":25,"merged":[[2,1,2,7],[3,1,3,2],[4,4,6,7]]}
[null,"Powrót do szkoły","— Plan"]
[]
[null,"Możesz śledzić postęp zakupów na podstawie kwot w poszczególnych kategoriach budżetu, wprowadzonych w arkuszu Podział budżetu."]
[null,"Podsumowanie budżetu",null,null,{"$f":"\"Postęp zakupów (\"&COUNTIFS(Lista_kontrolna[Kupione], \">0\")&\" z \"&COUNTIFS(Lista_kontrolna[Do kupienia], \">0\")&\")\"","v":"Postęp zakupów (1 z 6)"}]
[null,"Budżet",{"v":1500,"d":"1,500.00 zł"},null,{"$f":"IFERROR(COUNTIFS(Lista_kontrolna[Do kupienia],\">0\",Lista_kontrolna[Kupione],\">0\")/Suma_do_kupienia,0)","v":{"v":0.16666666666666666,"d":"17%"}}]
[null,"Suma z listy zakupów",{"$f":"IFERROR(SUM(Suma_listy_kontrolnej), \"\")","v":{"v":365,"d":"365.00 zł"}}]
[null,"Pozostałe środki",{"$f":"IFERROR(C5-C6, \"\")","v":{"v":1135,"d":"1,135.00 zł"}}]
[null,"Lista zakupów"]
[null,"Artykuł","Kategoria","Ilość","Do kupienia","Koszt","Kupione","Suma kosztów"]
[null,"Matematyka","Podręczniki",1,1,{"v":55,"d":"55.00 zł"},1,{"$f":"IFERROR(Lista_kontrolna[Ilość]*Lista_kontrolna[Koszt], \"\")","v":{"v":55,"d":"55.00 zł"}}]
[null,"Angielski","Podręczniki",1,1,null,null,{"$f":"IFERROR(Lista_kontrolna[Ilość]*Lista_kontrolna[Koszt], \"\")","v":0}]
[null,"Plecak","Przybory",1,null,{"v":30,"d":"30.00 zł"},null,{"$f":"IFERROR(Lista_kontrolna[Ilość]*Lista_kontrolna[Koszt], \"\")","v":{"v":30,"d":"30.00 zł"}}]
[null,"Kalkulator","Przybory",1,{"$nulls":3},{"$f":"IFERROR(Lista_kontrolna[Ilość]*Lista_kontrolna[Koszt], \"\")","v":0}]
[null,"Zakreślacze","Przybory",3,{"$nulls":3},{"$f":"IFERROR(Lista_kontrolna[Ilość]*Lista_kontrolna[Koszt], \"\")","v":0}]
[null,"Mundurek","Ubrania",2,1,{"v":100,"d":"100.00 zł"},null,{"$f":"IFERROR(Lista_kontrolna[Ilość]*Lista_kontrolna[Koszt], \"\")","v":{"v":200,"d":"200.00 zł"}}]
[null,"Koszule rozpinane","Ubrania",4,{"$nulls":3},{"$f":"IFERROR(Lista_kontrolna[Ilość]*Lista_kontrolna[Koszt], \"\")","v":0}]
[null,"T-shirty","Ubrania",5,{"$nulls":3},{"$f":"IFERROR(Lista_kontrolna[Ilość]*Lista_kontrolna[Koszt], \"\")","v":0}]
[null,"Krótkie spodenki","Ubrania",2,{"$nulls":3},{"$f":"IFERROR(Lista_kontrolna[Ilość]*Lista_kontrolna[Koszt], \"\")","v":0}]
[null,"Trampki","Ubrania",2,1,null,null,{"$f":"IFERROR(Lista_kontrolna[Ilość]*Lista_kontrolna[Koszt], \"\")","v":0}]
[null,"Skarpety","Ubrania",10,{"$nulls":3},{"$f":"IFERROR(Lista_kontrolna[Ilość]*Lista_kontrolna[Koszt], \"\")","v":0}]
[null,"Kurtka wiosenna","Ubrania",1,1,{"v":80,"d":"80.00 zł"},null,{"$f":"IFERROR(Lista_kontrolna[Ilość]*Lista_kontrolna[Koszt], \"\")","v":{"v":80,"d":"80.00 zł"}}]
[null,"Swetry","Ubrania",1,{"$nulls":3},{"$f":"IFERROR(Lista_kontrolna[Ilość]*Lista_kontrolna[Koszt], \"\")","v":0}]
[null,"Bluzy","Ubrania",1,{"$nulls":3},{"$f":"IFERROR(Lista_kontrolna[Ilość]*Lista_kontrolna[Koszt], \"\")","v":0}]
[null,"Bielizna","Ubrania",10,{"$nulls":3},{"$f":"IFERROR(Lista_kontrolna[Ilość]*Lista_kontrolna[Koszt], \"\")","v":0}]
[null,"Kurtka zimowa","Ubrania",1,1,null,null,{"$f":"IFERROR(Lista_kontrolna[Ilość]*Lista_kontrolna[Koszt], \"\")","v":0}]

{"sheet":"Podział budżetu","index":1,"n_rows":6,"n_cols":3,"rows_kept":6}
[null,"Podział budżetu"]
[null,"Dodaj kategorie i kwoty budżetu, z którymi będzie porównywana lista zakupów."]
[null,"Kategoria","Suma kosztów"]
[null,"Ubrania",{"$f":"IFERROR(SUMIFS(Lista_kontrolna[Suma kosztów],Lista_kontrolna[Kategoria],Kategoria[Kategoria]), \"\")","v":{"v":280,"d":"280.00 zł"}}]
[null,"Przybory",{"$f":"IFERROR(SUMIFS(Lista_kontrolna[Suma kosztów],Lista_kontrolna[Kategoria],Kategoria[Kategoria]), \"\")","v":{"v":30,"d":"30.00 zł"}}]
[null,"Podręczniki",{"$f":"IFERROR(SUMIFS(Lista_kontrolna[Suma kosztów],Lista_kontrolna[Kategoria],Kategoria[Kategoria]), \"\")","v":{"v":55,"d":"55.00 zł"}}]

{"sheet":"Lista zadań do wykonania","index":2,"n_rows":22,"n_cols":3,"rows_kept":22}
[null,"Lista zadań do wykonania"]
[null,"Zapisz wszystko, co trzeba zrobić przed rozpoczęciem roku szkolnego."]
[null,"Wykonane","Zadanie"]
[null,"x","Wypełnić wszystkie formularze rejestracyjne"]
[null,null,"Zaplanować badanie ogólne i badanie wzroku w szkole — w razie potrzeby"]
[null,null,"Sprawdzić wymagane szczepienia"]
[null,null,"Uzyskać od lekarza instrukcje dawkowania przepisanych leków"]
[null,null,"Sprawdzić zasady dotyczące ubioru w szkole"]
[null,null,"Odebrać listę potrzebnych przyborów"]
[null,null,"Spotkać się z nauczycielem"]
[null,null,"Określić preferowaną metodę kontaktu z nauczycielem (telefonicznie, mailem, na piśmie)"]
[null,null,"Oprowadzić dziecko po szkole"]
[null,null,"Pomóc dziecku zapamiętać adres, numer telefonu domowego, numer telefonu do pracy"]
[null,null,"Zorganizować transport, określić bezpieczne miejsce spotkania, przećwiczyć sytuację"]
[null,null,"Jeśli dziecko idzie do szkoły pieszo — kilka razy przećwiczyć drogę do szkoły i z powrotem"]
[null,null,"Jeśli dzieci są odwożone wspólnie — zapoznać dziecko z wszystkimi kierowcami"]
[null,null,"Jeśli dziecko jedzie autobusem — sprawdzić rozkład jazdy i przystanki"]
[null,null,"Zorganizować opiekę po szkole"]
[null,null,"Zaplanować jadłospis na śniadania, drugie śniadania, przekąski i posiłki po szkole"]
[null,null,"Zaplanować miejsce i czas odrabiania lekcji"]
[null,null,"Wprowadzić zasady dotyczące chodzenia spać (co najmniej dwa tygodnie przed rozpoczęciem roku szkolnego)"]
[null,null,"Przygotować kalendarz wszystkich wydarzeń szkolnych"]

{"sheet":"Lista udostępniania","index":3,"n_rows":4,"n_cols":5,"rows_kept":4}
[null,"Lista udostępniania",null,null,"Możesz udostępnić tę listę innym osobom, aby mogły ją współtworzyć. Wybierz polecenie Udostępnij w prawym górnym rogu, lub naciśnij klawisz ALT i klawisze Y, U. Zapisz plik w usłudze OneDrive i wyślij link znajomym."]
[null,"Imię i nazwisko","Adres e-mail","Udostępnione?"]
[null,"Osoba 1","osoba@e-mail.com","Tak"]
[null,"Osoba 2","osoba@e-mail.com","Nie"]